[Event "SUI-ch Bundesturnier TP-1 2022"]
[Site "Payerne"]
[Date "2022.05.27"]
[Round "3.9"]
[White "Sutter, Oliver"]
[Black "Stijve, Niels"]
[Result "1-0"]
[ECO "C02"]
[WhiteElo "2316"]
[BlackElo "1994"]
[Annotator "TA"]
[PlyCount "111"]
[EventDate "2022.05.26"]
[EventType "swiss"]
[EventCountry "SUI"]
[SourceTitle "playchess.com"]
[Source "ChessBase"]
[SourceQuality "1"]
[TimeControl "5400+30"]

{[%evp 11,111,8,43,37,50,52,95,93,140,156,164,150,153,137,147,145,136,139,145,140,147,139,164,85,100,95,93,93,159,158,163,152,157,161,154,154,156,159,137,82,88,90,152,165,166,164,164,172,219,227,233,179,218,177,145,145,156,138,207,113,534,534,534,524,754,741,713,713,713,713,705,710,700,599,729,719,697,707,1092,1058,988,718,1310,1280,1705,1709,1192,1470,2941,2400,2350,1994,29983,29984,29984,29985,29987,29988,29988,29989,29989,29989]} 1. c4 {[%emt 0:00:03]} c6 {[%emt 0:00:27]} 2. e4 {[%emt 0:01:14][%cal Be2e4,Be4e5][%mdl 32]} e6 {[%emt 0:00:29]} 3. d4 {[%emt 0:17:54]} d5 {[%emt 0:01:36]} 4. cxd5 {[%emt 0:00:33]} cxd5 {[%emt 0:00:44]} 5. e5 {[%emt 0:00:14]} Nc6 {[%emt 0:10:00]} 6. Nf3 {[%emt 0:01:42]} f6 {[%emt 0:04:26] 6...Nge7 is setting a new trend.} 7. Bb5 {[%emt 0:04:45] C02: French: Advance Variation.} Bd7 {[%emt 0:09:16]} 8. O-O {[%emt 0:00:17]} Qb6 {[%emt 0:03:25]} 9. Nc3 {[%emt 0:05:23] White is better.} fxe5 {[%emt 0:14:56]} (9... Nge7 $142) 10. Bxc6 $16 {[%emt 0:00:36][%mdl 64] Remove Defender} ({Don't take} 10. dxe5 Nge7 $16) 10... bxc6 {[%emt 0:02:40]} 11. Nxe5 {[%emt 0:00:13] Threatens to win with Bg5.} Nf6 {[%emt 0:00:39] [#]} 12. Re1 $146 {[%emt 0:07:46]} ({Predecessor:} 12. Bg5 Be7 13. Na4 Qc7 14. Bxf6 Bxf6 15. f4 O-O 16. Nc5 Bc8 17. Rc1 Rb8 18. Qd2 {1-0 (38) Hadzimanolis,A (2198)-Mopati,J (2180) Birmingham 1999}) 12... Qc7 {[%emt 0:12:23]} 13. Bf4 {[%emt 0:03:06][%cal Oe5g6]} Bd6 {[%emt 0:00:23]} 14. Rc1 {[%emt 0:00:17][%cal Oc3b5] White is much more active. The black rooks are badly placed.} Rb8 {[%emt 0:00:57] Inhibits Nb5.} 15. Bg3 {[%emt 0:16:06]} O-O {[%emt 0:03:31]} 16. Qe2 {[%emt 0:07:08]} Rfe8 {[%emt 0:11:35]} 17. Nd3 {[%emt 0:13:02]} (17. b3 $18) 17... Bxg3 {[%emt 0:03:42]} 18. hxg3 {[%emt 0:00:03]} ({Much worse is} 18. fxg3 $6 Qb6 19. Qe3 Ng4 $11) 18... Qb6 {[%emt 0:01:06]} 19. Qe3 {[%emt 0:03:24]} e5 {[%emt 0:10:35]} (19... Ng4 $142 20. Qf4 e5 21. Nxe5 Nxe5 22. dxe5 Rf8) 20. Nxe5 {[%emt 0:04:11]} ({Inferior is} 20. dxe5 Qxe3 21. Rxe3 d4 $11) 20... Ng4 {[%emt 0:03:07]} 21. Nxd7 {[%emt 0:05:35] Pair of Knights!} Rxe3 {[%emt 0:00:05]} 22. Nxb6 {[%emt 0:00:03]} Rxe1+ {[%emt 0:00:08]} 23. Rxe1 {[%emt 0:00:03]} Rxb6 $18 {[%emt 0:00:45][%mdl 4096] Endgame KRN-KRN} 24. f3 {[%emt 0:00:19]} Nh6 {[%emt 0:01:45]} 25. b3 {[%emt 0:00:51]} (25. g4 $142) 25... Nf5 $16 {[%emt 0:01:53][%csl LRd4,LRg3]} 26. Ne2 {[%emt 0:00:08]} Ra6 {[%emt 0:00:58]} (26... h5 $142) 27. g4 {[%emt 0:00:11]} Ne3 {[%emt 0:00:33]} 28. Nc3 {[%emt 0:03:29]} Nc2 {[%emt 0:00:10] [#]} 29. Rd1 {[%emt 0:00:12]} Ra3 {[%emt 0:01:05]} (29... Rb6 $142 30. Rd2 Na3) 30. Rd2 {[%emt 0:01:06]} Nb4 {[%emt 0:00:08]} 31. Kf2 {[%emt 0:00:42]} a5 {[%emt 0:00:08]} 32. Ke2 {[%emt 0:00:53]} Kf7 {[%emt 0:01:05]} 33. Rb2 {[%emt 0:02:37]} Ke6 {[%emt 0:00:34]} 34. Kd2 {[%emt 0:00:37] aiming for Kc1.} Kd6 {[%emt 0:00:17] [#]} (34... Kf7 $16 {was worth a try.} 35. Kd1 Kf6) 35. Kd1 {[%emt 0:01:34]} ({White should play} 35. g5 $1 $18) 35... Nd3 $2 {[%emt 0:01:25][%mdl 8192] A mistake that costs the game.} (35... a4 $16 {is a better chance.}) 36. Rd2 $18 {[%emt 0:00:13]} Nb4 {[%emt 0:00:19]} 37. Kc1 {[%emt 0:00:25] And now Kb2 would win.} a4 {[%emt 0:00:16]} 38. Kb2 {[%emt 0:00:28]} Nxa2 {[%emt 0:00:35]} 39. Kxa3 {[%emt 0:00:37]} Nxc3 {[%emt 0:00:05] KR-KN} 40. Rd3 {[%emt 0:00:17]} Nb5+ {[%emt 0:00:45]} 41. Kxa4 {[%emt 0:00:07]} Nc7 {[%emt 0:00:41]} 42. Rd1 {[%emt 0:00:12]} Nb5 {[%emt 0:00:28] Hoping for ...Nc3+.} 43. Ka5 {[%emt 0:00:29]} Nc3 {[%emt 0:00:41]} 44. Rd2 {[%emt 0:00:28]} Nb1 {[%emt 0:00:59]} 45. Rd3 {[%emt 0:00:38] Black must now prevent Kb4.} Na3 {[%emt 0:00:12]} 46. g5 {[%emt 0:00:35]} Nc2 {[%emt 0:00:58]} 47. f4 {[%emt 0:01:03]} Ke6 {[%emt 0:00:27]} 48. Rd2 {[%emt 0:00:26]} Na3 {[%emt 0:00:22]} 49. Kb6 {[%emt 0:00:16]} Nb1 {[%emt 0:00:42]} 50. Rf2 {[%emt 0:00:32]} Kf5 {[%emt 0:00:30]} 51. Kxc6 {[%emt 0:00:14]} Ke4 {[%emt 0:00:27]} 52. f5 {[%emt 0:00:16] White mates.} Ke3 {[%emt 0:00:34]} 53. Rf3+ {[%emt 0:00:06]} Kxd4 {[%emt 0:00:21]} 54. f6 {[%emt 0:00:04]} gxf6 {[%emt 0:00:21]} 55. gxf6 {[%emt 0:00:04][%cal Bg5f6,Bf6f7][%mdl 32]} Nd2 {[%emt 0:00:07]} 56. f7 {[%emt 0:00:12] Weighted Error Value: White=0.12 (very precise) /Black=0.42} 1-0

[Event "SUI-ch Bundesturnier TP-1 2022"]
[Site "Payerne"]
[Date "2022.05.27"]
[Round "3.10"]
[White "Mattenberger, Matthias"]
[Black "Rohrer, Christophe"]
[Result "0-1"]
[ECO "E45"]
[WhiteElo "1960"]
[BlackElo "2285"]
[Annotator "TA"]
[PlyCount "60"]
[EventDate "2022.05.26"]
[EventType "swiss"]
[EventCountry "SUI"]
[SourceTitle "playchess.com"]
[Source "ChessBase"]
[SourceQuality "1"]
[TimeControl "5400+30"]

{[%evp 16,60,21,-2,0,-10,17,3,32,-16,-16,0,-19,0,58,52,35,0,10,-52,-26,-131,-137,-138,-121,-133,-45,-37,0,0,0,0,8,-58,-37,-70,0,-56,0,0,0,-21,0,-29984,-29985,-29985,-29986]} 1. d4 {[%emt 0:00:04]} Nf6 {[%emt 0:00:07]} 2. c4 {[%emt 0:00:06]} e6 {[%emt 0:00:10]} 3. Nc3 {[%emt 0:00:04]} Bb4 {[%emt 0:00:11]} 4. e3 {[%emt 0:00:03]} b6 {[%emt 0:00:34]} 5. Nge2 {[%emt 0:00:05]} Ba6 {[%emt 0:00:24]} 6. a3 {[%emt 0:00:06]} Bxc3+ {[%emt 0:00:15]} 7. Nxc3 {[%emt 0:00:06]} d5 {[%emt 0:00:21]} 8. b3 {[%emt 0:00:19]} O-O {[%emt 0:00:23]} 9. Bd3 {[%emt 0:02:07]} dxc4 {[%emt 0:01:05] E45: Nimzo-Indian: Rubinstein: 4...b6 5 Ne2 Ba6.} 10. bxc4 {[%emt 0:02:36]} Nc6 {[%emt 0:00:31]} 11. Bb2 {[%emt 0:02:26]} Re8 {[%emt 0:02:22] [#] The position is equal.} 12. f4 $146 {[%emt 0:13:53] Prevents e5.} (12. Ne4 $14) ({Predecessor:} 12. Qc2 e5 13. d5 Na5 14. Na2 c6 15. Nb4 Bb7 16. dxc6 Nxc6 17. Nxc6 Bxc6 18. O-O {0-1 (30) Abdulla,A (2339)-Taleb,M (2399) Dubai 2003}) 12... Na5 $11 {[%emt 0:04:11]} 13. Qe2 {[%emt 0:00:14]} c5 {[%emt 0:03:35]} 14. dxc5 {[%emt 0:03:03]} bxc5 {[%emt 0:05:04]} (14... Nd7 $11 15. Na4 Qh4+ 16. g3 Qh3) 15. Rd1 {[%emt 0:00:23][%cal Od3h7]} Qe7 {[%emt 0:03:11]} 16. e4 {[%emt 0:01:39]} Rab8 {[%emt 0:08:53][%cal Oa6c4]} 17. Nb5 {[%emt 0:10:38]} (17. e5 $11 Ng4 18. Ne4 Rxb2 19. Qxb2) 17... Bxb5 $15 {[%emt 0:12:17]} 18. e5 {[%emt 0:11:34] [#]} (18. cxb5 $11 Rec8 19. Be5) 18... Nd5 $1 $17 {[%emt 0:06:40]} 19. cxd5 {[%emt 0:03:20]} Bxd3 {[%emt 0:04:54]} 20. Rxd3 {[%emt 0:00:54]} exd5 {[%emt 0:01:44]} (20... c4 $1 $17 {[%cal Rc4d3]} 21. Rd1 exd5 22. Rxd5 c3 23. Bxc3 Qxa3 $1 24. Bxa5 Rb1+ 25. Rd1 Qxa5+ 26. Kf2 Qb6+ 27. Kf3 Rb2) 21. Rxd5 $15 {[%emt 0:00:45]} Qb7 {[%emt 0:01:12]} 22. Rd2 {[%emt 0:00:55]} ({Don't blunder} 22. Rxc5 $2 Qxb2 23. Qxb2 Rxb2 $19) 22... Qb5 {[%emt 0:03:18]} 23. Rc2 {[%emt 0:01:54] Inhibits Nc4.} Red8 {[%emt 0:10:13][%cal Oa5c4]} 24. Rf1 {[%emt 0:03:23]} (24. Qxb5 $11 Rxb5 25. Ke2) 24... c4 {[%emt 0:03:17]} 25. Rf3 {[%emt 0:01:00]} Rd3 {[%emt 0:00:46]} (25... Nb3 $15) 26. f5 {[%emt 0:07:30]} ({Better is} 26. e6 $11 Nc6 {[#]} 27. Rxc4 $1 Rxf3 28. gxf3) 26... Rbd8 {[%emt 0:03:25]} (26... Qd5 $1 $15 27. e6 f6) 27. e6 $11 {[%emt 0:00:38] Rxd3 is the strong threat.} Qb6 $36 {[%emt 0:05:34][%mdl 2048] White is under pressure.} 28. exf7+ {[%emt 0:03:49]} (28. Qf2 $5 {[%cal Rf2b6]}) 28... Kxf7 {[%emt 0:00:26] Dancing on a razor blade.} 29. f6 $2 {[%emt 0:00:46][%mdl 8192]} (29. Qe6+ $11 Qxe6+ 30. fxe6+ Kxe6 31. Rf4) 29... Rd1+ {[%emt 0:01:11]} 30. Qxd1 {[%emt 0:00:09]} Qg1+ {[%emt 0:00:04][%mdl 64] Skewer, Double Attack.  Weighted Error Value: White=0.66/Black=0.20 (precise)} ({And not} 30... Rxd1+ 31. Kxd1 Qg1+ 32. Ke2 Qxg2+ 33. Ke3 Qg1+ 34. Rcf2 $17) 0-1

[Event "SUI-ch Bundesturnier TP-1 2022"]
[Site "Payerne"]
[Date "2022.05.27"]
[Round "4.2"]
[White "Laurent-Paoli, Pierre"]
[Black "Joie, Sebastien"]
[Result "1-0"]
[ECO "B12"]
[WhiteElo "2486"]
[BlackElo "2376"]
[Annotator "TA"]
[PlyCount "79"]
[EventDate "2022.05.26"]
[EventType "swiss"]
[EventCountry "SUI"]
[SourceTitle "playchess.com"]
[Source "ChessBase"]
[SourceQuality "1"]
[TimeControl "5400+30"]

{[%evp 16,79,23,32,40,23,30,37,47,0,60,56,55,54,64,44,52,5,39,21,27,18,55,27,36,-11,-15,-37,-29,-31,-16,-26,27,0,54,55,56,56,56,56,62,53,47,51,49,22,24,0,358,358,508,508,1049,500,874,500,29987,29988,29988,1520,29989,0,1572,0,29989,29990]} 1. e4 {[%emt 0:02:17]} c6 {[%emt 0:00:56][%cal Bc7c6,Bc6c5][%mdl 32]} 2. d4 {[%emt 0:00:27]} d5 {[%emt 0:00:06]} 3. e5 {[%emt 0:00:02]} Bf5 {[%emt 0:02:29]} 4. Nf3 {[%emt 0:00:28]} e6 {[%emt 0:00:11]} 5. Be2 {[%emt 0:00:05]} c5 {[%emt 0:00:07]} 6. O-O {[%emt 0:00:15]} Nc6 {[%emt 0:00:59]} 7. c3 {[%emt 0:01:02]} Bg4 {[%emt 0:00:48]} 8. Nbd2 {[%emt 0:21:40]} cxd4 {[%emt 0:05:41]} 9. cxd4 {[%emt 0:00:04]} Qb6 {[%emt 0:00:20] B12: Caro-Kann: Advance Variation.} 10. h3 {[%emt 0:00:49]} Bh5 {[%emt 0:04:23]} 11. a3 {[%emt 0:04:42]} Nge7 {[%emt 0:03:41] White is slightly better.} 12. b4 {[%emt 0:23:35]} (12. Qa4 $14) 12... Bxf3 {[%emt 0:02:42]} ({Black should play} 12... Nxd4 $11 13. Nxd4 Qxd4) 13. Nxf3 $14 {[%emt 0:00:14]} Nf5 {[%emt 0:00:04][%cal Rf5d4]} 14. Bb2 {[%emt 0:05:01]} Be7 {[%emt 0:00:30]} 15. Bd3 {[%emt 0:00:31]} g6 {[%emt 0:03:00] [#]} 16. g4 $146 {[%emt 0:03:32]} (16. Bc3 $14 {feels stronger.}) ({Predecessor:} 16. Qa4 Rc8 17. Bc3 a6 18. Rfb1 O-O 19. b5 axb5 20. Rxb5 Qc7 21. Bxf5 gxf5 22. Bd2 {1-0 (38) Cosma,E (2270)-Sheremetieva,M (2270) Yerevan 1996}) 16... Nh4 $1 $11 {[%emt 0:01:19]} (16... Nfxd4 $2 17. Nxd4 a5 18. Nf3 $18) 17. Nxh4 {[%emt 0:00:09]} Bxh4 {[%emt 0:00:03]} 18. Qd2 {[%emt 0:01:19]} Be7 {[%emt 0:03:31]} (18... Nxd4 $2 19. Bxd4 Bg5 20. Qb2 $18) 19. Qe3 {[%emt 0:02:20]} h5 {[%emt 0:04:30]} 20. g5 {[%emt 0:00:14]} (20. f3 $14 {was preferrable.}) 20... O-O {[%emt 0:00:29]} 21. f4 {[%emt 0:02:51]} Rac8 {[%emt 0:06:24][%cal Oc6a5]} 22. Rf2 {[%emt 0:04:25]} Bd8 {[%emt 0:04:16]} 23. Rc1 {[%emt 0:03:08]} Bc7 {[%emt 0:01:28]} (23... a6 $142) 24. Rfc2 {[%emt 0:00:40]} (24. b5 $5 {[%cal Rb5c6]} Ne7 25. Qd2 $14) 24... Bb8 {[%emt 0:00:49]} (24... a6 $11) 25. b5 $14 {[%emt 0:01:03]} Ne7 {[%emt 0:00:08]} 26. a4 $36 {[%emt 0:02:54][%cal Ba3a4,Ba4a5][%mdl 2080] White has good play.} Rxc2 {[%emt 0:00:36]} 27. Rxc2 {[%emt 0:00:03]} Rc8 {[%emt 0:00:29]} 28. Rxc8+ {[%emt 0:01:41]} Nxc8 {[%emt 0:00:28]} 29. Qd2 {[%emt 0:02:18] Inhibits Qa5.} a5 {[%emt 0:14:02]} 30. bxa6 {[%emt 0:07:20]} bxa6 {[%emt 0:00:02]} 31. a5 {[%emt 0:01:04]} (31. Qc3 $5 {[%cal Rc3c8]} Qb7 32. Ba3 $14) 31... Qc6 {[%emt 0:02:47][%mdl 8192] [#]} (31... Qb7 $11) 32. Qb4 $18 {[%emt 0:00:38]} Ba7 {[%emt 0:01:38]} (32... Bc7 $142 33. Ba3 Qe8) 33. Ba3 {[%emt 0:00:54]} Kh7 {[%emt 0:00:34]} (33... Qe8 $142 34. Bxa6 Kh7) 34. Kf1 {[%emt 0:00:52]} (34. Qf8 $142 Bxd4+ 35. Kg2) 34... Qc7 {[%emt 0:01:11]} (34... Qe8 $142 35. Bxa6 Kg7) 35. Ke2 {[%emt 0:01:04] [#] Hoping for Qf8.} Bb8 {[%emt 0:01:41]} (35... Qd8 $18 36. Bxa6 Kg7) 36. Qf8 {[%emt 0:00:47]} Ba7 {[%emt 0:01:48]} 37. Qh6+ {[%emt 0:00:52]} Kg8 {[%emt 0:00:01]} 38. Qf8+ {[%emt 0:00:04]} (38. Bf8 $142 f5 39. gxf6 Qh7 40. Qxh7+ Kxh7 41. f7 Bxd4 42. Ba3 Bxe5 43. fxe5) 38... Kh7 {[%emt 0:00:06]} 39. Qh6+ {[%emt 0:00:02]} (39. Kf2 $18 Bxd4+ 40. Kf3) 39... Kg8 {[%emt 0:00:05]} 40. Bf8 {[%emt 0:00:02] Weighted Error Value: White=0.89/Black=0.69} 1-0

[Event "SUI-ch Bundesturnier TP-1 2022"]
[Site "Payerne"]
[Date "2022.05.27"]
[Round "4.3"]
[White "Collin, Moritz Valentin"]
[Black "Sutter, Oliver"]
[Result "1/2-1/2"]
[ECO "D36"]
[WhiteElo "2052"]
[BlackElo "2316"]
[Annotator "TA"]
[PlyCount "120"]
[EventDate "2022.05.26"]
[EventType "swiss"]
[EventCountry "SUI"]
[SourceTitle "playchess.com"]
[Source "ChessBase"]
[SourceQuality "1"]
[TimeControl "5400+30"]

{[%evp 20,120,20,-8,12,0,0,0,8,0,-2,-5,12,0,12,5,24,0,3,11,18,-89,-103,-103,-94,-89,-95,-83,-98,-95,-87,-75,-37,-223,-216,-274,-96,-100,-95,-93,-101,-89,-91,-129,-72,-78,-45,-41,-26,-22,-24,-31,-10,-30,0,-19,0,0,0,0,0,0,0,0,0,0,0,0,0,0,0,0,0,0,14,10,10,10,27,0,7,0,0,0,0,0,0,0,0,0,0,0,0,0,0,0,0,0,0,0,0,0,0]} 1. d4 {[%emt 0:00:01]} Nf6 {[%emt 0:00:12]} 2. c4 {[%emt 0:00:04]} e6 {[%emt 0:00:12]} 3. Nc3 {[%emt 0:00:04]} d5 {[%emt 0:00:07]} 4. cxd5 {[%emt 0:00:04]} exd5 {[%emt 0:00:04]} 5. Bg5 {[%emt 0:00:08]} Be7 {[%emt 0:00:13]} 6. e3 {[%emt 0:00:06]} Nbd7 {[%emt 0:00:39]} 7. Bd3 {[%emt 0:00:08]} O-O {[%emt 0:00:31]} 8. Nge2 {[%emt 0:00:10]} h6 {[%emt 0:00:19]} 9. Bh4 {[%emt 0:00:05]} c6 {[%emt 0:00:21]} 10. Qc2 {[%emt 0:00:20]} Re8 {[%emt 0:00:22]} 11. f3 {[%emt 0:00:42]} b5 $1 {[%emt 0:00:24][%cal Bb7b5,Bb5b4][%mdl 4] is recently more successful than 11...c5. D36: Queen's Gambit Declined: Exchange Variation: Main line (5 Bg5 c6 6 Qc2).} 12. O-O {[%emt 0:04:16]} Nb6 {[%emt 0:02:10]} 13. Bf2 {[%emt 0:02:47]} Bd7 {[%emt 0:05:19] [#]} 14. e4 $146 {[%emt 0:02:43]} ({Predecessor:} 14. h3 Rc8 15. e4 b4 16. Nb1 dxe4 17. fxe4 c5 18. dxc5 Bxc5 19. Bxc5 Na4 20. Nd2 Nxc5 {0-1 (31) Nestorovic,D (2408)-Savic,M (2505) Paracin 2015}) 14... dxe4 {[%emt 0:05:40]} 15. fxe4 {[%emt 0:00:14]} b4 {[%emt 0:01:25]} (15... Ng4 {with more complications.} 16. e5 c5 17. Nxb5 cxd4 18. Bxd4 Rc8) 16. Nd1 {[%emt 0:04:01]} c5 {[%emt 0:20:53]} 17. dxc5 {[%emt 0:12:52]} Rc8 $1 {[%emt 0:03:06]} 18. a3 {[%emt 0:04:10]} (18. Ba6 $5 {[%cal Ra6c8]} Rc7 19. a3 $11) 18... b3 {[%emt 0:05:43]} 19. Qxb3 {[%emt 0:02:12]} Bxc5 {[%emt 0:00:53]} 20. Nec3 {[%emt 0:06:35] Against Ba4} (20. Bxc5 $11 Rxc5 21. Nf2) 20... Be6 $17 {[%emt 0:08:27]} 21. Qc2 {[%emt 0:04:43]} Ng4 {[%emt 0:00:59] Strongly threatening ...Qh4.} 22. Bxc5 {[%emt 0:03:01]} Qc7 $1 {[%emt 0:02:27][%csl Gg4][%cal Rc7h2]} ({Much worse is} 22... Rxc5 $6 23. Be2 $11) 23. g3 {[%emt 0:05:03]} Qxc5+ {[%emt 0:00:05]} 24. Kh1 {[%emt 0:01:31]} Red8 {[%emt 0:05:17][%mdl 1024] ...Qh5 is the strong threat. Black has strong compensation.} 25. Be2 {[%emt 0:05:32]} Ne5 {[%emt 0:05:24]} 26. Qc1 $2 {[%emt 0:08:36]} (26. Ba6 $1 $15) 26... Nbc4 $19 {[%emt 0:02:40]} ({Not} 26... Bh3 27. Re1 $17) 27. Qf4 {[%emt 0:02:56] [#]} Ng6 $2 {[%emt 0:05:20]} (27... Nxb2 $1 $19 {[%mdl 512] White must now prevent ...Nbd3.} 28. Qf2 Rd2 29. Qxc5 Rxc5) 28. Qf2 $17 {[%emt 0:01:34]} Qxf2 {[%emt 0:02:03]} 29. Rxf2 {[%emt 0:00:48] [#]} Nxb2 $1 {[%emt 0:00:50]} 30. Nd5 {[%emt 0:03:50]} Nc4 {[%emt 0:02:03]} 31. N1c3 {[%emt 0:02:10]} Nb6 {[%emt 0:07:24]} ({Better is} 31... Nd2 {[%cal Od2e4]} 32. Bf3 Nxf3 33. Rxf3 Ne5) 32. Bf3 {[%emt 0:02:44]} Bxd5 {[%emt 0:00:12]} 33. Nxd5 {[%emt 0:00:10]} Nxd5 {[%emt 0:01:56]} 34. exd5 {[%emt 0:00:08]} Ne5 {[%emt 0:00:13]} 35. Bg2 {[%emt 0:01:27]} Rc3 {[%emt 0:03:17]} 36. a4 {[%emt 0:02:22]} Rdc8 {[%emt 0:02:43]} 37. Rd1 {[%emt 0:05:38]} Rd3 {[%emt 0:03:26]} 38. Rxd3 {[%emt 0:08:35]} Nxd3 $11 {[%emt 0:00:16][%mdl 4096] Endgame KRB-KRN} 39. Rd2 {[%emt 0:01:20]} Rc1+ {[%emt 0:02:22]} 40. Bf1 $1 {[%emt 0:00:05]} Rxf1+ {[%emt 0:01:08] KRN-KR} 41. Kg2 {[%emt 0:00:07]} Rf6 {[%emt 0:00:23]} 42. Rxd3 {[%emt 0:00:15] Hoping for d6. KR-KR} Kf8 {[%emt 0:00:04]} 43. Rb3 {[%emt 0:03:19]} Ra6 {[%emt 0:00:08]} 44. Rb4 {[%emt 0:01:07]} Ke7 {[%emt 0:02:16]} 45. Kf3 {[%emt 0:00:31]} Kd6 {[%emt 0:00:45]} 46. Ke4 {[%emt 0:01:08]} Kc5 {[%emt 0:01:03]} 47. Rb5+ {[%emt 0:01:43]} Kd6 {[%emt 0:01:18]} 48. a5 {[%emt 0:00:27]} Kc7 {[%emt 0:00:06]} 49. Ke5 {[%emt 0:00:52]} h5 {[%emt 0:00:10] The position is equal.} 50. Kf4 {[%emt 0:00:48]} Rg6 {[%emt 0:00:21]} 51. h3 {[%emt 0:00:47]} Rf6+ {[%emt 0:00:39]} 52. Kg5 {[%emt 0:00:36]} Rf3 {[%emt 0:00:34]} 53. a6 {[%emt 0:00:37]} Rxg3+ {[%emt 0:00:09]} 54. Kh4 {[%emt 0:00:35]} Ra3 {[%emt 0:00:56]} 55. Rb7+ {[%emt 0:00:22]} Kd6 {[%emt 0:00:03]} 56. Rxa7 {[%emt 0:00:18]} Kxd5 {[%emt 0:00:45]} 57. Rxf7 {[%emt 0:00:10]} g5+ {[%emt 0:00:39]} 58. Kxg5 {[%emt 0:00:53] Threatens to win with a7.} Rxh3 {[%emt 0:00:08]} 59. Rf5+ {[%emt 0:00:38]} Kc6 {[%emt 0:00:13]} 60. Ra5 {[%emt 0:00:08]} Rg3+ {[%emt 0:00:07] White happily takes the draw.  Weighted Error Value: White=0.17 (very precise) /Black=0.10 (very precise)} 1/2-1/2

[Event "SUI-ch Bundesturnier TP-1 2022"]
[Site "Payerne"]
[Date "2022.05.27"]
[Round "4.4"]
[White "Colmenares, Aurelio"]
[Black "Pomini, Aurelien"]
[Result "1-0"]
[ECO "D27"]
[WhiteElo "2318"]
[BlackElo "2216"]
[Annotator "TA"]
[PlyCount "61"]
[EventDate "2022.05.26"]
[EventType "swiss"]
[EventCountry "SUI"]
[SourceTitle "playchess.com"]
[Source "ChessBase"]
[SourceQuality "1"]
[TimeControl "5400+30"]

{[%evp 20,61,0,-8,0,0,0,0,0,-20,-12,-15,0,-35,-48,-48,-22,-12,0,0,0,0,17,12,242,244,263,239,214,214,537,535,691,457,445,437,1229,1182,5414,5381,29994,29995,29995,29996]} 1. Nf3 {[%emt 0:01:29]} d5 {[%emt 0:04:04]} 2. e3 {[%emt 0:00:02]} Nf6 {[%emt 0:00:23]} 3. c4 {[%emt 0:00:12]} e6 {[%emt 0:00:12]} 4. Nc3 {[%emt 0:00:15]} dxc4 {[%emt 0:02:46]} 5. Bxc4 {[%emt 0:00:52]} a6 {[%emt 0:00:18]} 6. a4 {[%emt 0:01:10]} c5 {[%emt 0:02:19]} 7. O-O {[%emt 0:00:54]} Nc6 {[%emt 0:00:13]} 8. d4 {[%emt 0:00:29]} Be7 {[%emt 0:07:48]} 9. h3 {[%emt 0:12:31]} O-O {[%emt 0:01:30]} 10. Re1 {[%emt 0:05:02]} cxd4 {[%emt 0:03:29]} 11. exd4 {[%emt 0:00:05]} Nb4 {[%emt 0:01:11] D27: Queen's Gambit Accepted: Classical main line: 7 e4!? and 7 a4.} 12. Bg5 {[%emt 0:04:15]} b6 {[%emt 0:05:43] [#]} 13. Qb3 $146 {[%emt 0:13:10]} ({Predecessor:} 13. Qe2 Bb7 14. Rad1 Nfd5 15. Bc1 Re8 16. Ne5 Bf8 17. Ne4 Qc7 18. Bb3 f6 19. Nf3 Rad8 20. g3 Ba8 21. a5 Qb7 22. axb6 Nxb6 23. Kh2 Kh8 24. Rg1 Qxe4 {0-1 (24) Braun,P (2175)-Skomorokhin,R (2465) Schwaebisch Gmuend 1995}) 13... Nc6 {[%emt 0:11:03] The position is equal.} 14. Qd1 {[%emt 0:29:43]} Bb7 {[%emt 0:04:55]} 15. Rc1 {[%emt 0:00:17]} Rc8 {[%emt 0:05:44][%cal Oc6d4]} 16. Ba2 {[%emt 0:01:00]} (16. Qe2 $5 {[%cal Rc4a6]}) 16... Nb4 {[%emt 0:02:00]} 17. Bb1 {[%emt 0:00:54]} Nfd5 {[%emt 0:09:56]} (17... Bxf3 $5 18. Qxf3 Qxd4 $11) 18. Bd2 {[%emt 0:00:58]} Bd6 {[%emt 0:02:10]} 19. Ne5 {[%emt 0:02:56]} Bb8 {[%emt 0:12:04]} 20. Qh5 {[%emt 0:02:16][%csl Gb1][%cal Rh5h7]} g6 {[%emt 0:01:58]} (20... f5 $5 {[%cal Rd5f6]}) 21. Qh6 {[%emt 0:02:15] aiming for Ne4.} Bxe5 $2 {[%emt 0:04:15] This costs Black the game.} (21... Ne7 $11) 22. dxe5 $18 {[%emt 0:04:26] Black must now prevent Bg5.} ({Not} 22. Rxe5 Qd7 $11) 22... f5 {[%emt 0:03:29] [#]} 23. exf6 $1 {[%emt 0:00:54]} Qxf6 {[%emt 0:02:14]} 24. Ne4 $40 {[%emt 0:01:44][%mdl 128] White has strong attack. Really sharp!} Qd4 {[%emt 0:01:24]} (24... Qg7 25. Qxg7+ Kxg7) 25. Rxc8 {[%emt 0:05:22]} Rxc8 {[%emt 0:01:31]} 26. Bc3 {[%emt 0:00:25]} Nxc3 {[%emt 0:00:06]} 27. bxc3 {[%emt 0:00:09]} Rxc3 {[%emt 0:00:31]} (27... Qg7 $142 28. Qxg7+ Kxg7 29. cxb4 Bxe4 30. Bxe4 a5 31. bxa5 bxa5) 28. Nxc3 {[%emt 0:00:26][%cal Oe1e6]} Qxc3 {[%emt 0:00:04]} 29. Rxe6 {[%emt 0:04:41] White wants to mate with Re8+.} Qc5 {[%emt 0:00:24] [#]} 30. Bxg6 $1 {[%emt 0:01:11]} Qc1+ {[%emt 0:00:48]} 31. Qxc1 {[%emt 0:00:05] Weighted Error Value: White=0.23 (precise) /Black=0.96} 1-0